Workbook

Sheet Transazioni
A1: ID | B1: origine | C1: Costo € | D1: Vendita | E1: CAP | F1: SKU | G1: Q | H1: ToT | I1: Data | J1: Guadagno | K1: Note | L1: € DrpSp | M1: DrpSp | N1: € al Clnt | O1: D eBay | P1: D PayPal
A2: id-001 | B2: sito | C2: 15.15 | D2: 27.66 | E2: 06133 | F2: at.1-029 | G2: 1 | H2: =G:G*D:D -> 27.66 | I2: 2014-06-13 | J2: =IF(ID="","",IF(E_Clnt>ToT,"che cavolo fai?! Non puoi rimborsare più di qunato abbia pagato!",ROUND((ToT-E_Clnt)/(1+IVA),2)-Costo-PP_f-IF(D_PayPal="si",ROUND(PP*(ToT-E_Clnt),2),ROUND(PP*ToT,2))-IF(origine="ebay",IF(D_eBay="si",0,ROUND(ToT*eBay,2)),0)+IF(DrpSp="si",E_DrpSp,0))) -> 6.23
A3: id-002 | B3: sito | C3: 25.83 | D3: 39.41 | E3: 20831 | F3: at.1-077 | G3: 1 | H3: 39.41 | I3: 2014-06-16 | J3: 4.78
A4: id-003 | B4: sito | C4: 20.93 | D4: 35.32 | E4: 55041 | F4: at.1-122 | G4: 1 | H4: 35.32 | I4: 2014-06-18 | J4: 6.47
A5: id-004 | B5: sito | C5: 26.08 | D5: 39.41 | E5: 33040 | F5: at.1-077 | G5: 1 | H5: 39.41 | I5: 2014-06-21 | J5: 4.53
A6: id-005 | B6: diretto | C6: 22.37 | D6: 35.32 | E6: 80010 | F6: at.1-021 | G6: 1 | H6: 35.32 | I6: 2014-06-25 | J6: 5.03
A7: id-006 | B7: ebay | C7: 14.87 | D7: 31.12 | E7: 06133 | F7: at.1-032 | G7: 1 | H7: 31.12 | I7: 2014-06-30 | J7: 6.12
A8: id-007 | B8: ebay | C8: 9.99 | D8: 25.53 | E8: 06063 | F8: at.2-144 | G8: 1 | H8: 25.53 | I8: 2014-06-30 | J8: 7.17
A9: id-008 | B9: ebay | C9: 14.93 | D9: 31.12 | E9: 07100 | F9: at.2-034 | G9: 1 | H9: 31.12 | I9: 2014-07-11 | J9: 6.06
A10: id-009 | B10: ebay | C10: 22.5 | D10: 39.63 | E10: 86039 | F10: at.1-021 | G10: 1 | H10: 39.63 | I10: 2014-07-21 | J10: 4.32
A11: id-010 | B11: sito | C11: 21.1 | D11: 35.32 | E11: 47923 | F11: at.1-122 | G11: 1 | H11: 35.32 | I11: 2014-07-26 | J11: 6.3
A12: id-011 | B12: ebay | C12: 6.08 | D12: 9.99 | E12: 95024 | F12: at.2-015 | G12: 1 | H12: 9.99 | I12: 2014-08-08 | J12: 0.42
A13: id-012 | B13: ebay | C13: 15.19 | D13: 31.12 | E13: 58036 | F13: at.v-034 | G13: 1 | H13: 31.12 | I13: 2014-08-15 | J13: 5.8
A14: id-013 | B14: ebay | C14: 25.07 | D14: 43.89 | E14: 52011 | F14: at.1-077 | G14: 1 | H14: 43.89 | I14: 2014-08-19 | J14: 4.68
A15: id-014 | B15: ebay | C15: 24.85 | D15: 43.89 | E15: 00139 | F15: at.1-077 | G15: 1 | H15: 43.89 | I15: 2014-08-20 | J15: 4.9
A16: id-015 | B16: ebay | C16: 15.17 | D16: 31.12 | E16: 10042 | F16: at.1-032 | G16: 1 | H16: 31.12 | I16: 2014-08-25 | J16: 5.82
A17: id-016 | B17: ebay | C17: 19.72 | D17: 37.93 | E17: 27042 | F17: at.1-122 | G17: 1 | H17: 37.93 | I17: 2014-08-26 | J17: 5.94
A18: id-017 | B18: ebay | C18: 19.76 | D18: 37.93 | E18: 09013 | F18: at.1-122 | G18: 1 | H18: 37.93 | I18: 2014-08-26 | J18: 5.9
A19: id-018 | B19: ebay | C19: 20 | D19: 37.93 | E19: 51016 | F19: at.1-122 | G19: 1 | H19: 37.93 | I19: 2014-08-28 | J19: 5.66
A20: id-019 | B20: ebay | C20: 15.24 | D20: 31.12 | E20: 20064 | F20: at.v-034 | G20: 1 | H20: 31.12 | I20: 2014-09-01 | J20: 5.75
A21: id-020 | B21: ebay | C21: 17.75 | D21: 37.93 | E21: 20098 | F21: at.1-122 | G21: 1 | H21: 37.93 | I21: 2014-09-04 | J21: 7.91
A22: id-021 | B22: ebay | C22: 25.63 | D22: 43.89 | E22: 63085 | F22: at.2-077 | G22: 1 | H22: 43.89 | I22: 2014-09-10 | J22: 4.12
A23: id-022 | B23: ebay | C23: 7.76 | D23: 14.99 | E23: 59100 | F23: at.n-020 | G23: 1 | H23: 14.99 | I23: 2014-09-11 | J23: 2.17
A24: id-023 | B24: ebay | C24: 13.17 | D24: 31.12 | E24: 40129 | F24: at.v-022 | G24: 1 | H24: 31.12 | I24: 2014-09-13 | J24: 7.82
A25: id-024 | B25: ebay | C25: 22.59 | D25: 40.67 | E25: cile | F25: at.1-121 | G25: 1 | H25: =SUM(D25:D26) -> 77.66 | I25: 2014-09-17 | J25: =ROUND(Vendita/(1+IVA),2)-PP_f/2-Costo-ROUND(ToT*eBay,2)-ROUND(ToT*PP,2) -> 0.165
A26: id-025 | B26: ebay | C26: 20.09 | D26: 36.99 | E26: cile | F26: at.1-123 | G26: 1 | I26: 2014-09-17 | J26: =ROUND(Vendita/(1+IVA),2)-PP_f/2-Costo-ROUND(ToT*eBay,2)-ROUND(ToT*PP,2) -> 10.055
A27: id-026 | B27: sito | C27: 18.72 | D27: 32.25 | E27: 70121 | F27: at.1-003 | G27: 1 | H27: =G:G*D:D -> 32.25 | I27: 2014-09-23 | J27: 6.26
A28: id-027 | B28: ebay | C28: 15.59 | D28: 31.12 | E28: 66030 | F28: at.v-034 | G28: 1 | H28: 31.12 | I28: 2014-09-23 | J28: 5.4
A29: id-028 | B29: ebay | C29: 25.73 | D29: 43.89 | E29: 60015 | F29: at.1-077 | G29: 1 | H29: 43.89 | I29: 2014-09-24 | J29: 4.02
A30: id-029 | B30: ebay | C30: 15.74 | D30: 31.12 | E30: 05018 | F30: at.1-032 | G30: 1 | H30: 31.12 | I30: 2014-09-24 | J30: 5.25
A31: id-030 | B31: ebay | C31: 14.21 | D31: 21.53 | E31: Spagna | F31: at.1-016 | G31: 1 | H31: 21.53 | I31: 2014-09-29 | J31: 0.21
A32: id-031 | B32: ebay | C32: 17.52 | D32: 36.82 | E32: 26036 | F32: at.v-023 | G32: 1 | H32: 36.82 | I32: 2014-09-29 | J32: -0.01 | K32: Rimborsato | L32: 17.86 | M32: si | N32: =D32 -> 36.82 | O32: si | P32: si
A33: id-032 | B33: sito | C33: 12.72 | D33: 24.59 | E33: 37047 | F33: at.1-019 | G33: 1 | H33: 24.59 | I33: 2014-09-30 | J33: 6.25
A34: id-033 | B34: ebay | C34: 23.59 | D34: 44.06 | E34: belgio | F34: at.1-077 | G34: 1 | H34: 44.06 | I34: 2014-10-20 | J34: 6.26
A35: id-034 | B35: ebay | C35: 7.49 | D35: 11.59 | E35: 23807 | F35: a1.cs.047 | G35: 1 | H35: 11.59 | I35: 2014-10-22 | J35: 0.11
A36: id-035 | B36: sito | C36: 20.85 | D36: 36.99 | E36: HK | F36: selz.001 | G36: 1 | H36: =SUM(D36:D38) -> 79 | I36: 2014-10-25 | J36: =-C36-PP_f/2+L84/3 -> -10.31166667 | K36: gli oggetti non sono mai arrivati, rimborso parziale dal fornitore ottenuto 41.31$ | M36: altro | N36: =SUM(D36:D38) -> 79 | O36: np | P36: si
A37: id-036 | B37: sito | C37: 20.04 | D37: 42.01 | E37: HK | F37: at.1-123 | G37: 1 | I37: 2014-10-25 | J37: =-C37-PP_f/2+L84/3 -> -9.501666667
A38: id-037 | B38: spedizioni | C38: 9.55 | D38: 0 | E38: HK | F38: none | G38: 1 | I38: 2014-10-25 | J38: =-C38+L84/3 -> 1.163333333
A39: id-038 | B39: ebay | C39: 7.6 | D39: 11.59 | E39: spagna | F39: a1.cs.047 | G39: 1 | H39: =G:G*D:D -> 11.59 | I39: 2014-10-27 | J39: 2.220446049e-16
A40: id-039 | B40: ebay | C40: 23.65 | D40: 37.63 | E40: UK | F40: at.1-021 | G40: 1 | H40: 37.63 | I40: 2014-10-28 | J40: -24 | K40: oggetto rimborsato. Il cliente dice mai arrivato, il tracking dice arrivato. Mai più spedizione a organizzazioni, l'indirizzo era di una Università | M40: no | N40: =D40 -> 37.63 | O40: si | P40: si
A41: id-040 | B41: ebay | C41: 6.28 | D41: 9.99 | E41: 90011 | F41: at.2-015 | G41: 1 | H41: 9.99 | I41: 2014-10-29 | J41: 0.22
A42: id-041 | B42: ebay | C42: 16.07 | D42: 31.12 | E42: svizzera | F42: at.v-034 | G42: 1 | H42: 31.12 | I42: 2014-10-31 | J42: 4.92
A43: id-042 | B43: ebay | C43: 9.6 | D43: 18.22 | E43: spagna | F43: at.w-013 | G43: 1 | H43: 18.22 | I43: 2014-11-02 | J43: 2.54
A44: id-043 | B44: altro | C44: 12.03 | D44: 25 | E44: francia | F44: a1.cs.032 | G44: 1 | H44: 25 | I44: 2014-11-02 | J44: 1.56 | K44: ordine errato | L44: 13.94 | M44: si | N44: =D44 -> 25 | O44: si | P44: si
A45: id-044 | B45: ebay | C45: 12.03 | D45: 25 | E45: 33020 | F45: a1.cs.032 | G45: 1 | H45: 25 | I45: 2014-11-02 | J45: 4.76
A46: id-045 | B46: ebay | C46: 18.48 | D46: 34.79 | E46: 74100 | F46: selz.017 | G46: 1 | H46: 34.79 | I46: 2014-11-03 | J46: 5.03
A47: id-046 | B47: ebay | C47: 6.41 | D47: 9.99 | E47: 20155 | F47: at.2-015 | G47: 1 | H47: 9.99 | I47: 2014-11-04 | J47: 0.09
A48: id-047 | B48: ebay | C48: 9.62 | D48: 18.22 | E48: 47100 | F48: at.w-013 | G48: 1 | H48: 18.22 | I48: 2014-11-05 | J48: 2.52
A49: id-048 | B49: ebay | C49: 12.09 | D49: 28.52 | E49: UK | F49: selz.011 | G49: 1 | H49: 28.52 | I49: 2014-11-05 | J49: 7.12
A50: id-049 | B50: diretto | C50: 27.57 | D50: 33.38 | E50: 80125 | F50: at.2-034 | G50: 1 | H50: =SUM(D50:D51) -> 64.5 | I50: 2014-11-06 | J50: =ROUND(Vendita/(1+IVA),2)-PP_f/2-Costo-ROUND(ToT*PP,2) -> -2.575 | K50: due ordini più spedizione veloce
A51: id-050 | B51: diretto | C51: =56.36-C50 -> 28.79 | D51: 31.12 | F51: at.2-029 | G51: 1 | I51: 2014-11-06 | J51: =ROUND(Vendita/(1+IVA),2)-PP_f/2-Costo-ROUND(ToT*PP,2) -> -3.455
A52: id-051 | B52: ebay | C52: 10.83 | D52: 19.59 | E52: 80145 | F52: a1.cs.002 | G52: 1 | H52: =G:G*D:D -> 19.59 | I52: 2014-11-06 | J52: 2.25
A53: id-052 | B53: ebay | C53: 21.03 | D53: 37.93 | E53: 15048 | F53: at.1-122 | G53: 1 | H53: =G:G*D:D -> 37.93 | I53: 2014-11-06 | J53: 4.63
A54: id-053 | B54: ebay | C54: 7.49 | D54: 11.59 | E54: Francia | F54: a1.cs.047 | G54: 1 | H54: =SUM(D54:D55) -> 28.19 | I54: 2014-11-06 | J54: =ROUND(Vendita/(1+IVA),2)-PP_f/2-Costo-ROUND(ToT*eBay,2)-ROUND(ToT*PP,2) -> -1.945 | K54: ha ordinato 2 oggetti da ebay
A55: id-054 | B55: ebay | C55: 12.93 | D55: 16.6 | F55: a1.cs.045 | G55: 1 | I55: 2014-11-06 | J55: =ROUND(Vendita/(1+IVA),2)-PP_f/2-Costo-ROUND(ToT*eBay,2)-ROUND(ToT*PP,2) -> 0.505
A56: id-055 | B56: ebay | C56: 8.08 | D56: 14.99 | E56: spagna | F56: at.n-020 | G56: 1 | H56: =G:G*D:D -> 14.99 | I56: 2014-11-07 | J56: 1.85
A57: id-056 | B57: ebay | C57: 12.13 | D57: 28.52 | E57: 35020 | F57: selz.011 | G57: 1 | H57: 28.52 | I57: 2014-11-08 | J57: 7.08
A58: id-057 | B58: ebay | C58: 7.63 | D58: 11.59 | E58: 70132 | F58: a1.cs.047 | G58: 1 | H58: 11.59 | I58: 2014-11-10 | J58: -0.03
A59: id-058 | B59: ebay | C59: 12.87 | D59: 28.52 | E59: 36040 | F59: selz.004 | G59: 1 | H59: 28.52 | I59: 2014-11-11 | J59: 6.34
A60: id-059 | B60: sito | C60: 12.39 | D60: 27.37 | E60: Germania | F60: selz.014 | G60: 1 | H60: 27.37 | I60: 2014-11-11 | J60: 8.76
A61: id-060 | B61: ebay | C61: 12.9 | D61: 19.96 | E61: 41123 | F61: at.2-015 | G61: 1 | H61: 19.96 | I61: 2014-11-12 | J61: -13.83 | K61: quantità ordinata 2. Poi rimborsati 17.40€ di consegna! | M61: no | N61: 17.4 | O61: no | P61: no
A62: id-061 | B62: ebay | C62: 16.12 | D62: 31.12 | E62: UK | F62: at.1-029 | G62: 1 | H62: 31.12 | I62: 2014-11-13 | J62: 4.87
A63: id-062 | B63: ebay | C63: 16.63 | D63: 35.95 | E63: 89060 | F63: selz.017 | G63: 1 | H63: 35.95 | I63: 2014-11-17 | J63: 1.36 | K63: disputa con fornitore vinta e rimborso ottenuto 15.01.15 - cliente rimborsato e disputa aperta per il rimborso 04.01.15 | L63: 18.34 | M63: si | N63: =D63 -> 35.95 | O63: si | P63: si
A64: id-063 | B64: ebay | C64: 9.59 | D64: 19.13 | E64: 20142 | F64: at.2-118 | G64: 1 | H64: 19.13 | I64: 2014-11-17 | J64: 3.18 | K64: non ha ancora ricevuto ed è passato quasi un mese 15.12.14
A65: id-064 | B65: ebay | C65: 17.52 | D65: 36.82 | E65: 17100 | F65: at.v-023 | G65: 1 | H65: 36.82 | I65: 2014-11-19 | J65: 7.38
A66: id-065 | B66: ebay | C66: 14.97 | D66: 27.79 | E66: 39101 | F66: at.2-112 | G66: 1 | H66: 27.79 | I66: 2014-11-20 | J66: =IF(ID="","",IF(E_Clnt>ToT,"che cavolo fai?! Non puoi rimborsare più di qunato abbia pagato!",ROUND((ToT-E_Clnt)/(1+IVA),2)-Costo-PP_f-IF(D_PayPal="si",ROUND(PP*(ToT-E_Clnt),2),ROUND(PP*ToT,2))-IF(origine="ebay",IF(D_eBay="si",0,ROUND(ToT*eBay,2)),0)+IF(DrpSp="si",E_DrpSp,0))) -> -0.34 | K66: lo avevano fuori stock | L66: 14.98 | M66: si | N66: =D66 -> 27.79 | O66: si | P66: si
A67: id-066 | B67: ebay | C67: 7.72 | D67: 14.99 | E67: 30030 | F67: at.n-020 | G67: 1 | H67: 14.99 | I67: 2014-11-20 | J67: 2.21
A68: id-067 | B68: ebay | C68: 10.08 | D68: 16.6 | E68: 21052 | F68: a1.cs.045 | G68: 1 | H68: 16.6 | I68: 2014-11-24 | J68: 0.96
A69: id-068 | B69: ebay | C69: 14.11 | D69: 26.4 | E69: 51100 | F69: at.2-150 | G69: 1 | H69: 26.4 | I69: 2014-11-24 | J69: 3.64
A70: id-069 | B70: sito | C70: 14.97 | D70: 25 | E70: 37097 | F70: at.2-112 | G70: 1 | H70: 25 | I70: 2014-11-24 | J70: -0.42 | K70: la avevano fuori stock | L70: 14.9 | M70: si | N70: =D70 -> 25 | O70: np | P70: si
A71: id-070 | B71: ebay | C71: 14.97 | D71: 27.79 | E71: Spagna | F71: at.2-112 | G71: 1 | H71: 27.79 | I71: 2014-11-24 | J71: 0.02 | K71: rimborsato e ci abbiamo guadagnato sul cambio | L71: 15.34 | M71: si | N71: =D71 -> 27.79 | O71: si | P71: si
A72: id-071 | B72: ebay | C72: 20.85 | D72: 38.28 | E72: 00148 | F72: at.1-122 | G72: 1 | H72: 38.28 | I72: 2014-11-26 | J72: 1.87 | K72: disputa scalata 10.01.15 - escalare la disputa, il sito delle poste è down e aprire la contestazione di ebay 09.01.15 - il cliente non ha ricevuto il pacco dopo un mese. Disputa aperta per rimborso totale 05.01.15 | L72: 23.07 | M72: si | N72: =D72 -> 38.28 | O72: si | P72: si
A73: id-072 | B73: ebay | C73: 16.42 | D73: 34.79 | E73: belgio | F73: selz.017 | G73: 1 | H73: 34.79 | I73: 2014-11-26 | J73: 7.09
A74: id-073 | B74: sito | C74: 20.66 | D74: 37.63 | E74: francia | F74: at.1-021 | G74: 1 | H74: 37.63 | I74: 2014-11-26 | J74: 8.55 | K74: il cliente si chiede dove sia il pacco. Fornitore contattato, preparare ad aprire disputa tra 2 settimane. 06.01.15
A75: id-074 | B75: ebay | C75: 11.06 | D75: 28.52 | E75: Spagna | F75: selz.011 | G75: 1 | H75: 28.52 | I75: 2014-11-27 | J75: 8.15 | K75: arrivato con pacco danneggiato, non ho capito in che condizioni sia l'articolo, fornitore contatto ma disputa non aperta, cliente contattato per risoluzione, non ha ancora risposto. 14.30 del 17.12.14
A76: id-075 | B76: ebay | C76: 7.4 | D76: 14.99 | E76: 00146 | F76: at.n-020 | G76: 1 | H76: 14.99 | I76: 2014-11-28 | J76: 2.53 | K76: al cliente non è ancora arrivato, ci ha contattato 09.01.15
A77: id-076 | B77: ebay | C77: 12.88 | D77: 28.52 | E77: Spagna | F77: selz.004 | G77: 1 | H77: 28.52 | I77: 2014-11-29 | J77: 6.33
A78: id-077 | B78: ebay | C78: 14.97 | D78: 27.79 | E78: 74016 | F78: at.2-112 | G78: 1 | H78: 27.79 | I78: 2014-11-30 | J78: 0.13 | K78: abbiamo guadagnato un po' di più dal cambio. cliente rimborsato, disputa vinta 04.01.15 | L78: 15.45 | M78: si | N78: =D78 -> 27.79 | O78: si | P78: si
A79: id-078 | B79: sito | C79: 31.54 | D79: 50.32 | E79: 30034 | F79: at.1-121 | G79: 1 | H79: =SUM(D79:D80) -> 60.68 | I79: 2014-12-02 | J79: =E_DrpSp-Costo-PP_f/2 -> 1.665 | K79: un pacco li è arrivato ma questo no, e credo non sia mai stato spedito, controversia aperta al fornitore 19.01.15 - Aprire una disputa e cazziarli 13.01.15 | L79: 33.38 | M79: si | N79: =D79 -> 50.32 | O79: np | P79: si
A80: id-079 | B80: sito | C80: 8.11 | D80: 10.36 | F80: at.n-020 | G80: 1 | I80: 2014-12-02 | J80: =ROUND(Vendita/(1+IVA),2)-PP_f/2-Costo-ROUND(ToT*PP,2) -> 0.205
A81: id-080 | B81: sito | C81: 16.83 | D81: 33.39 | E81: CZ | F81: at.v-023 | G81: 1 | H81: =G:G*D:D -> 33.39 | I81: 2014-12-10 | J81: 9.05 | K81: mi sono dimenticato di guardare l'email! E lo sto processando 4 giorni dopo!!!
A82: id-081 | B82: ebay | C82: 16.83 | D82: 33.39 | E82: 42030 | F82: at.v-023 | G82: 1 | H82: =G:G*D:D -> 33.39 | I82: 2014-12-13 | J82: -0.29 | K82: arrivato rotto. Disputa aperta. 10.01.15 | L82: 16.89 | M82: si | N82: =D82 -> 33.39 | O82: si | P82: si
A83: id-082 | B83: ebay | C83: 28.51 | D83: 41.99 | E83: 20099 | F83: selz.002 | G83: 1 | H83: =G:G*D:D -> 41.99 | I83: 2014-12-13 | J83: -0.07
A84: id-083 | B84: altro | F84: none | G84: 1 | I84: 2014-12-14 | K84: rimborso della spedizione in HK. Il pagamento è in USD convertito in 32,14€ da paypal | L84: 32.14 | M84: altro
A85: id-084 | B85: ebay | C85: 14.41 | D85: 33.39 | E85: 00178 | F85: at.v-023 | G85: 1 | H85: =G:G*D:D -> 33.39 | I85: 2014-12-15 | J85: -0.59 | K85: è fermo da un mese! Disputa aperta 23.01.15 | L85: 14.17 | M85: si | N85: =D85 -> 33.39 | O85: si | P85: si
A86: id-085 | B86: ebay | C86: 16.76 | D86: 33.39 | E86: 62019 | F86: at.v-023 | G86: 1 | H86: 33.39 | I86: 2014-12-15 | J86: -8.24 | K86: arrivato rotto. Disputa aperta. 13.01.15 | L86: 8.87 | M86: si | N86: =D86 -> 33.39 | O86: si | P86: si
A87: id-086 | B87: ebay | C87: 24.1 | D87: 44.06 | E87: 00193 | F87: at.1-077 | G87: 1 | H87: 44.06 | I87: 2014-12-15 | J87: 5.75
A88: id-087 | B88: ebay | C88: 12.22 | D88: 20.95 | E88: Spagna | F88: at.2-115 | G88: 1 | H88: 20.95 | I88: 2014-12-17 | J88: -2.3 | K88: oggetto credo mai spedito dal fornitore, disputa aperta 09.02.15 | L88: 12.37 | M88: si | N88: =D88 -> 20.95 | O88: no | P88: si
A89: id-088 | B89: ebay | C89: 14.57 | D89: 31.12 | E89: 70124 | F89: at.1-032 | G89: 1 | H89: 31.12 | I89: 2014-12-18 | J89: 6.42 | K89: mai risposto, processato ugualmente. cliente contattato per ebay e email, 11.05 del 18.12.14,
A90: id-089 | B90: ebay | C90: 9.72 | D90: 14.99 | E90: 25129 | F90: at.n-020 | G90: 1 | H90: 14.99 | I90: 2014-12-19 | J90: 0.21
A91: id-090 | B91: ebay | C91: 16.35 | D91: 35.95 | E91: Spagna | F91: at.1-003 | G91: 1 | H91: 35.95 | I91: 2014-12-22 | J91: -16.7 | K91: disputa aperta 02.02.15 | M91: no | N91: =D91 -> 35.95 | O91: si | P91: si
A92: id-091 | B92: ebay | C92: 7.26 | D92: 14.99 | E92: 31010 | F92: at.n-020 | G92: 1 | H92: 14.99 | I92: 2014-12-23 | J92: 2.67 | K92: mai risposto, processato ugualmente. cliente contattato per ebay e email, 09.26 24.12.14
A93: id-092 | B93: ebay | C93: 14.36 | D93: 32.73 | E93: 73025 | F93: at.1-029 | G93: 1 | H93: 32.73 | I93: 2014-12-24 | J93: 7.74
A94: id-093 | B94: ebay | C94: 11.06 | D94: 31.21 | E94: 90146 | F94: selz.003 | G94: 1 | H94: =SUM(D94:D95) -> 62.33 | I94: 2014-12-24 | J94: =ROUND(Vendita/(1+IVA),2)-PP_f/2-Costo-ROUND(ToT*eBay,2)-ROUND(ToT*PP,2) -> 5.995
A95: id-094 | B95: ebay | C95: 14.57 | D95: 31.12 | F95: at.1-032 | G95: 1 | I95: 2014-12-24 | J95: =ROUND(Vendita/(1+IVA),2)-PP_f/2-Costo-ROUND(ToT*eBay,2)-ROUND(ToT*PP,2) -> 10.765
A96: id-095 | B96: ebay | C96: 12.36 | D96: 26.4 | E96: 87011 | F96: at.2-150 | G96: 1 | H96: =G:G*D:D -> 26.4 | I96: 2014-12-27 | J96: 5.39
A97: id-096 | B97: ebay | C97: 12.36 | D97: 26.4 | E97: 11024 | F97: at.2-150 | G97: 1 | H97: 26.4 | I97: 2014-12-27 | J97: 5.39
A98: id-097 | B98: ebay | C98: 17.81 | D98: 33.39 | E98: Paesi Bassi | F98: at.v-023 | G98: 1 | H98: 33.39 | I98: 2014-12-27 | J98: 1.13 | K98: disputa aperta 02.02.15 | L98: 19.29 | M98: si | N98: =D98 -> 33.39 | O98: si | P98: si
A99: id-098 | B99: ebay | C99: 12.78 | D99: 32.53 | E99: 00040 | F99: at.v-034 | G99: 1 | H99: 32.53 | I99: 2014-12-28 | J99: -13.13 | K99: dovuto rimborsare e non possiamo chiedere soldi al fornitore | M99: no | N99: =D99 -> 32.53 | O99: si | P99: si
A100: id-099 | B100: ebay | C100: 6.41 | D100: 9.99 | E100: 39100 | F100: at.2-015 | G100: 1 | H100: 9.99 | I100: 2014-12-29 | J100: 0.09
A101: id-100 | B101: ebay | C101: 16.84 | D101: 35.95 | E101: Spagna | F101: at.1-003 | G101: 1 | H101: 35.95 | I101: 2015-01-05 | J101: 7.46
A102: id-101 | B102: ebay | C102: 10.09 | D102: 18.99 | E102: Spagna | F102: at.w-013 | G102: 1 | H102: 18.99 | I102: 2015-01-05 | J102: 2.58
A103: id-102 | B103: ebay | C103: 5.63 | D103: 9.99 | E103: 74123 | F103: selz.025 | G103: 1 | H103: 9.99 | I103: 2015-01-06 | J103: 0.87
A104: id-103 | B104: ebay | C104: 10.19 | D104: 18.99 | E104: Spagna | F104: at.w-013 | G104: 1 | H104: 18.99 | I104: 2015-01-09 | J104: 2.48
A105: id-104 | B105: ebay | C105: 18.4 | D105: 36.82 | E105: Germania | F105: at.v-023 | G105: 1 | H105: 36.82 | I105: 2015-01-12 | J105: 6.5
A106: id-105 | B106: ebay | C106: 13.75 | D106: 20.95 | E106: 33033 | F106: at.2-115 | G106: 1 | H106: 20.95 | I106: 2015-01-13 | J106: -1 | K106: il venditore non ha mai spedito. Disputa aperta 12.02.15 | L106: 13.1 | M106: si | N106: 20.95 | O106: si | P106: si
A107: id-106 | B107: ebay | C107: 10.37 | D107: 24.92 | E107: 37042 | F107: selz.013 | G107: 1 | H107: =SUM(D107:D108) -> 63.2 | I107: 2015-01-15 | J107: =ROUND(Vendita/(1+IVA),2)-PP_f/2-Costo-ROUND(ToT*eBay,2)-ROUND(ToT*PP,2) -> 1.415
A108: id-107 | B108: ebay | C108: 22.47 | D108: 38.28 | F108: at.1-122 | G108: 1 | I108: 2015-01-15 | J108: =ROUND(Vendita/(1+IVA),2)-PP_f/2-Costo-ROUND(ToT*eBay,2)-ROUND(ToT*PP,2) -> 8.735
A109: id-108 | B109: ebay | C109: 33.61 | D109: 50.32 | E109: 58022 | F109: at.1-121 | G109: 1 | H109: =G:G*D:D -> 50.32 | I109: 2015-01-16 | J109: -2.36 | K109: oggetto mai spedito, rimborso in attesa 13.03.15 | L109: 36.63 | M109: si | N109: =D109 -> 50.32 | O109: no | P109: si
A110: id-109 | B110: ebay | C110: 21.6 | D110: 37.71 | E110: 52014 | F110: at.1-144 | G110: 1 | H110: 37.71 | I110: 2015-01-16 | J110: 3.91
A111: id-110 | B111: ebay | C111: 16.41 | D111: 35.95 | E111: 21046 | F111: selz.017 | G111: 1 | H111: 35.95 | I111: 2015-01-19 | J111: 7.89
A112: id-111 | B112: ebay | C112: 19.76 | D112: 36.82 | E112: 61022 | F112: at.v-023 | G112: 1 | H112: 36.82 | I112: 2015-01-20 | J112: 5.14
A113: id-112 | B113: ebay | C113: 19.81 | D113: 36.82 | E113: 13041 | F113: at.v-023 | G113: 1 | H113: 36.82 | I113: 2015-01-21 | J113: 5.09
A114: id-113 | B114: ebay | C114: 16.49 | D114: 35.95 | E114: 20094 | F114: at.1-003 | G114: 1 | H114: 35.95 | I114: 2015-01-21 | J114: 7.81
A115: id-114 | B115: ebay | C115: 19.68 | D115: 34.79 | E115: svizzera | F115: selz.017 | G115: 1 | H115: 34.79 | I115: 2015-01-22 | J115: 3.83
A116: id-115 | B116: ebay | C116: 20.52 | D116: 36.82 | E116: belgio | F116: at.v-023 | G116: 1 | H116: 36.82 | I116: 2015-01-22 | J116: 4.38
A117: id-116 | B117: ebay | C117: 7.82 | D117: 14.88 | E117: Spagna | F117: at.1-127 | G117: 1 | H117: 14.88 | I117: 2015-01-30 | J117: -1.65 | K117: disputa aperta. 22.01.15 - non gli è arrivato. Ci ha contatto e li ho rispo. | L117: 8.01 | M117: si | N117: =D117 -> 14.88 | O117: no | P117: si
A118: id-117 | B118: ebay | C118: 13.04 | D118: 32.53 | E118: 31047 | F118: at.v-034 | G118: 1 | H118: 32.53 | I118: 2015-01-30 | J118: 8.91
A119: id-118 | B119: ebay | C119: 7.89 | D119: 14.99 | E119: 20025 | F119: at.n-020 | G119: 1 | H119: 14.99 | I119: 2015-02-04 | J119: 2.04
A120: id-119 | B120: ebay | C120: 17.46 | D120: 26.4 | E120: 53024 | F120: at.2-150 | G120: 1 | H120: 26.4 | I120: 2015-02-04 | J120: 0.29
A121: id-120 | B121: ebay | C121: 7.89 | D121: 14.99 | E121: 37136 | F121: at.n-020 | G121: 1 | H121: 14.99 | I121: 2015-02-04 | J121: 2.04
A122: id-121 | B122: ebay | C122: 1.06 | D122: 7.49 | E122: 52048 | F122: selz.023 | G122: 1 | H122: 7.49 | I122: 2015-02-09 | J122: 3.73
A123: id-122 | B123: sito | C123: 1.1 | D123: 7.49 | E123: 10154 | F123: selz.022 | G123: 1 | H123: 7.49 | I123: 2015-02-09 | J123: 4.44
A124: id-123 | B124: ebay | C124: 7.87 | D124: 14.99 | E124: 46040 | F124: at.n-020 | G124: 1 | H124: 14.99 | I124: 2015-02-13 | J124: 2.06
A125: id-124 | B125: ebay | C125: 1.23 | D125: 7.49 | E125: 04022 | F125: selz.022 | G125: 1 | H125: 7.49 | I125: 2015-02-14 | J125: 3.56
A126: id-125 | B126: ebay | C126: 9.95 | D126: 17.17 | E126: 54100 | F126: at.w-091 | G126: 1 | H126: 17.17 | I126: 2015-02-14 | J126: 1.47
A127: id-126 | B127: ebay | C127: 7.89 | D127: 14.99 | E127: 00060 | F127: at.n-020 | G127: 1 | H127: 14.99 | I127: 2015-02-14 | J127: 2.04
A128: id-127 | B128: ebay | C128: 10.68 | D128: 17.71 | E128: 48025 | F128: at.w-091 | G128: 1 | H128: 17.71 | I128: 2015-02-14 | J128: 1.12
A129: id-128 | B129: ebay | C129: 2.1 | D129: 14.98 | E129: 20081 | F129: selz.023 | G129: 1 | H129: 14.98 | I129: 2015-02-15 | J129: 7.82
A130: id-129 | B130: ebay | C130: 8.79 | D130: 14.99 | E130: 43100 | F130: at.n-020 | G130: 1 | H130: 14.99 | I130: 2015-02-17 | J130: =IF(ID="","",IF(E_Clnt>ToT,"che cavolo fai?! Non puoi rimborsare più di qunato abbia pagato!",ROUND((ToT-E_Clnt)/(1+IVA),2)-Costo-PP_f-IF(D_PayPal="si",ROUND(PP*(ToT-E_Clnt),2),ROUND(PP*ToT,2))-IF(origine="ebay",IF(D_eBay="si",0,ROUND(ToT*eBay,2)),0)+IF(DrpSp="si",E_DrpSp,0))) -> 1.14
A131: id-130 | B131: ebay | C131: 24.82 | D131: 38.28 | E131: 00060 | F131: at.1-122 | G131: 1 | H131: 38.28 | I131: 2015-02-21 | J131: 1.08
A132: id-131 | B132: ebay | C132: 24.82 | D132: 38.28 | E132: 48025 | F132: at.1-122 | G132: 1 | H132: 38.28 | I132: 2015-02-22 | J132: 1.08
A133: id-132 | B133: ebay | C133: 15.59 | D133: 32.53 | E133: Paesi Bassi | F133: at.v-034 | G133: 1 | H133: 32.53 | I133: 2015-03-05 | J133: 6.36
A134: id-133 | B134: ebay | C134: 15.49 | D134: 30.18 | E134: 20131 | F134: selz.014 | G134: 1 | H134: 30.18 | I134: 2015-03-07 | J134: 4.85 | K134: cliente contattato 09.20 del 09.03.15 - contattare il cliente ebay perché il lotto è da 7 e non da 8 come per errore scritto sbagliato in tutta l'inserzione!!!!
A135: id-134 | B135: ebay | C135: 6.8 | D135: 9.99 | E135: 20026 | F135: at.2-015 | G135: 1 | H135: 9.99 | I135: 2015-03-06 | J135: -0.3
A136: id-135 | B136: ebay | C136: 10.68 | D136: 17.71 | E136: spagna | F136: at.w-091 | G136: 1 | H136: 17.71 | I136: 2015-03-13 | J136: 1.12
A137: id-136 | B137: ebay | C137: 1.13 | D137: 7.49 | E137: 00135 | F137: selz.023 | G137: 1 | H137: 7.49 | I137: 2015-03-14 | J137: 3.66
A138: id-137 | B138: ebay | C138: 10.68 | D138: 17.71 | E138: spagna | F138: at.w-091 | G138: 1 | H138: 17.71 | I138: 2015-03-16 | J138: 1.12
A139: id-138 | B139: ebay | C139: 1.6 | D139: 5.99 | E139: Germania | F139: selz.024 | G139: 1 | H139: 5.99 | I139: 2015-03-17 | J139: -1.95 | L139: 0 | M139: no | N139: =D139 -> 5.99 | O139: si | P139: si
A140: id-139 | B140: ebay | C140: 1.88 | D140: 7.49 | E140: 47900 | F140: selz.022 | G140: 1 | H140: 7.49 | I140: 2015-03-18 | J140: 2.91
A141: id-140 | B141: ebay | C141: 17.77 | D141: 35.95 | E141: spagna | F141: at.1-003 | G141: 1 | H141: =SUM(D141:D142) -> 70.5 | I141: 2015-03-20 | J141: =ROUND(Vendita/(1+IVA),2)-PP_f/2-Costo-ROUND(ToT*eBay,2)-ROUND(ToT*PP,2) -> 2.075
A142: id-141 | B142: ebay | C142: 20.02 | D142: 34.55 | F142: at.1-005 | G142: 1 | I142: 2015-03-20 | J142: =ROUND(Vendita/(1+IVA),2)-PP_f/2-Costo-ROUND(ToT*eBay,2)-ROUND(ToT*PP,2) -> 8.125
A143: id-142 | B143: ebay | C143: 1.59 | D143: 5.99 | E143: 25064 | F143: selz.024 | G143: 1 | H143: =G:G*D:D -> 5.99 | I143: 2015-03-22 | J143: 2.17
A144: id-143 | B144: ebay | C144: 1.11 | D144: 7.49 | E144: 50127 | F144: selz.023 | G144: 1 | H144: 7.49 | I144: 2015-03-22 | J144: 3.68
A145: id-144 | B145: ebay | C145: 10.42 | D145: 17.71 | E145: 26013 | F145: at.w-091 | G145: 1 | H145: 17.71 | I145: 2015-03-27 | J145: 1.38 | K145: processato il 30 per mia non curanza nel weekend
A146: id-145 | B146: ebay | C146: 24.25 | D146: 38.28 | E146: 41012 | F146: at.1-122 | G146: 1 | H146: 38.28 | I146: 2015-04-01 | J146: 1.65
A147: id-146 | B147: ebay | C147: 25.72 | D147: 44.06 | E147: Germania | F147: at.1-077 | G147: 1 | H147: 44.06 | I147: 2015-04-02 | J147: 4.13
A148: id-147 | B148: ebay | C148: 6.91 | D148: 9.99 | E148: 10093 | F148: at.2-015 | G148: 1 | H148: 9.99 | I148: 2015-04-02 | J148: -0.41
A149: id-148 | B149: ebay | C149: 1.17 | D149: 7.49 | E149: 40128 | F149: selz.022 | G149: 1 | H149: 7.49 | I149: 2015-04-06 | J149: 3.62
A150: id-149 | B150: ebay | C150: 8.05 | D150: 14.99 | E150: 89029 | F150: at.n-020 | G150: 1 | H150: 14.99 | I150: 2015-04-06 | J150: 1.88
A151: id-150 | B151: ebay | C151: 9.24 | D151: 18.22 | E151: 71122 | F151: at.1-013 | G151: 1 | H151: 18.22 | I151: 2015-04-06 | J151: 2.9
A152: id-151 | B152: ebay | C152: 7.45 | D152: 18.61 | E152: 33170 | F152: at.1-009 | G152: 1 | H152: =SUM(D152:D153) -> 33.6 | I152: 2015-04-07 | J152: =ROUND(Vendita/(1+IVA),2)-PP_f/2-Costo-ROUND(ToT*eBay,2)-ROUND(ToT*PP,2) -> 3.125
A153: id-152 | B153: ebay | C153: 8.98 | D153: 14.99 | F153: at.n-020 | G153: 1 | I153: 2015-04-07 | J153: =ROUND(Vendita/(1+IVA),2)-PP_f/2-Costo-ROUND(ToT*eBay,2)-ROUND(ToT*PP,2) -> 3.135
A154: id-153 | B154: ebay | C154: 8.36 | D154: 14.99 | E154: 00012 | F154: at.n-020 | G154: 1 | H154: =G:G*D:D -> 14.99 | I154: 2015-04-09 | J154: 1.57
A155: id-154 | B155: ebay | C155: 12.15 | D155: 27.57 | E155: 73012 | F155: at.2-034 | G155: 1 | H155: 27.57 | I155: 2015-04-11 | J155: 6.4
A156: id-155 | B156: ebay | C156: 1.13 | D156: 7.49 | E156: 50038 | F156: selz.023 | G156: 1 | H156: 7.49 | I156: 2015-04-13 | J156: 3.66
A157: id-156 | B157: ebay | C157: 8.98 | D157: 15.99 | E157: belgio | F157: at.n-020 | G157: 1 | H157: 15.99 | I157: 2015-04-15 | J157: 1.64
A158: id-157 | B158: ebay | C158: 16.71 | D158: 31.12 | E158: Germania | F158: at.v-022 | G158: 1 | H158: 31.12 | I158: 2015-04-16 | J158: 4.28
A159: id-158 | B159: sito | C159: 11.26 | D159: 25.78 | E159: 36040 | F159: selz.016 | G159: 1 | H159: 25.78 | I159: 2015-04-16 | J159: 8.64
A160: id-159 | B160: ebay | C160: 13.33 | D160: 23.13 | E160: 00134 | F160: selz.010 | G160: 1 | H160: 23.13 | I160: 2015-04-19 | J160: 2.18 | K160: oggetto non arrivato. Rimborsato e disputa ali aperta il 12.06.15
A161: id-160 | B161: ebay | C161: 17.24 | D161: 26.4 | E161: belgio | F161: at.2-150 | G161: 1 | H161: 26.4 | I161: 2015-04-19 | J161: 0.51
A162: id-161 | B162: ebay | C162: 18.15 | D162: 35.95 | E162: 42017 | F162: at.1-003 | G162: 1 | H162: =SUM(D162:D163) -> 68.48 | I162: 2015-04-21 | J162: =ROUND(Vendita/(1+IVA),2)-PP_f/2-Costo-ROUND(ToT*eBay,2)-ROUND(ToT*PP,2) -> 1.965
A163: id-162 | B163: ebay | C163: 14.1 | D163: 32.53 | F163: at.v-034 | G163: 1 | I163: 2015-04-21 | J163: =ROUND(Vendita/(1+IVA),2)-PP_f/2-Costo-ROUND(ToT*eBay,2)-ROUND(ToT*PP,2) -> 12.385
A164: id-163 | B164: ebay | C164: 25.35 | D164: 38.28 | E164: 20090 | F164: at.1-122 | G164: 1 | H164: =SUM(D164:D165) -> 80.27 | I164: 2015-04-21 | J164: =ROUND(Vendita/(1+IVA),2)-PP_f/2-Costo-ROUND(ToT*eBay,2)-ROUND(ToT*PP,2) -> -4.905
A165: id-164 | B165: ebay | C165: 23.67 | D165: 41.99 | F165: selz.002 | G165: 1 | I165: 2015-04-21 | J165: =ROUND(Vendita/(1+IVA),2)-PP_f/2-Costo-ROUND(ToT*eBay,2)-ROUND(ToT*PP,2) -> 10.575 | K165: arrivato senza scatola, cliente scontento.
A166: id-165 | B166: sito | C166: 12.79 | D166: 26.85 | E166: 54033 | F166: at.1-020 | G166: 1 | H166: =SUM(D166:D168) -> 91.33 | I166: 2015-04-24 | J166: =ROUND(Vendita/(1+IVA),2)-PP_f/3-Costo-ROUND(ToT*PP,2) -> 5.993333333 | K166: ha ordinato 3 oggetti, due identici
A167: id-166 | B167: sito | C167: 12.79 | D167: 26.85 | F167: at.1-020 | G167: 1 | I167: 2015-04-24 | J167: =ROUND(Vendita/(1+IVA),2)-PP_f/3-Costo-ROUND(ToT*PP,2) -> 9.103333333
A168: id-167 | B168: sito | C168: 19.51 | D168: 37.63 | F168: at.1-021 | G168: 1 | I168: 2015-04-24 | J168: =ROUND(Vendita/(1+IVA),2)-PP_f/3-Costo-ROUND(ToT*PP,2) -> 11.21333333
A169: id-168 | B169: ebay | C169: 0.9 | D169: 4.99 | E169: 00042 | F169: selz.020 | G169: 1 | H169: =G:G*D:D -> 4.99 | I169: 2015-05-01 | J169: 2.17
A170: id-169 | B170: ebay | C170: 17.59 | D170: 32.73 | E170: 36020 | F170: at.1-029 | G170: 1 | H170: 32.73 | I170: 2015-05-01 | J170: 4.51
A171: id-170 | B171: ebay | C171: 13.51 | D171: 33.9 | E171: 10088 | F171: selz.005 | G171: 1 | H171: 33.9 | I171: 2015-05-04 | J171: 9.39
A172: id-171 | B172: ebay | C172: 6.63 | D172: 12.49 | E172: 10082 | F172: at.2-015 | G172: 1 | H172: 12.49 | I172: 2015-05-08 | J172: 1.59
A173: id-172 | B173: ebay | C173: 5.27 | D173: 17.82 | E173: Paesi Bassi | F173: selz.018 | G173: 1 | H173: 17.82 | I173: 2015-05-12 | J173: 6.6
A174: id-173 | B174: ebay | C174: 6.96 | D174: 12.49 | E174: 81025 | F174: at.2-015 | G174: 1 | H174: 12.49 | I174: 2015-05-13 | J174: 1.26
A175: id-174 | B175: ebay | C175: 10.41 | D175: 18.99 | E175: Paesi Bassi | F175: at.w-013 | G175: 1 | H175: 18.99 | I175: 2015-05-25 | J175: 2.26
A176: id-175 | B176: ebay | C176: 0.92 | D176: 14.98 | E176: 48018 | F176: selz.022 | G176: 1 | H176: 14.98 | I176: 2015-05-27 | J176: 9
A177: id-176 | B177: ebay | C177: 10.57 | D177: 26.4 | E177: 40068 | F177: at.2-159 | G177: 1 | H177: 26.4 | I177: 2015-05-28 | J177: 7.18
A178: id-177 | B178: ebay | C178: 7.72 | D178: 15.99 | E178: spagna | F178: at.n-020 | G178: 1 | H178: 15.99 | I178: 2015-05-31 | J178: 2.9
A179: id-178 | B179: ebay | C179: 8.11 | D179: 15.99 | E179: 59013 | F179: at.n-020 | G179: 1 | H179: 15.99 | I179: 2015-06-01 | J179: 2.51
A180: id-179 | B180: ebay | C180: 21.3 | D180: 38.28 | E180: 23030 | F180: at.1-122 | G180: 1 | H180: 38.28 | I180: 2015-06-09 | J180: 4.6
A181: id-180 | B181: ebay | C181: 10.19 | D181: 26.4 | E181: 80049 | F181: at.2-159 | G181: 1 | H181: 26.4 | I181: 2015-06-09 | J181: -2.81 | K181: da coglioni! Se lo rimborsavo ieri avrei risparmiato 2 euro! 25.07.15 non li è ancora arrivato e mi ha contattato 21.07.15 | L181: 10.37 | M181: si | N181: =D181 -> 26.4 | O181: no | P181: si
A182: id-181 | B182: ebay | C182: 0.4 | D182: 4.99 | E182: 37066 | F182: selz.020 | G182: 1 | H182: 4.99 | I182: 2015-06-10 | J182: 2.67
A183: id-182 | B183: ebay | C183: 18.77 | D183: =H:H/G:G -> 12.49 | E183: 95045 | F183: at.2-015 | G183: 3 | H183: 37.47 | I183: 2015-06-10 | J183: 6.57 | K183: 3 lotti
A184: id-183 | B184: ebay | C184: 2.43 | D184: =H:H/G:G -> 7.49 | E184: 48018 | F184: selz.022 | G184: 3 | H184: 22.47 | I184: 2015-06-10 | J184: 12.63 | K184: 3 articoli
A185: id-184 | B185: ebay | C185: 20.45 | D185: 36.99 | E185: 20139 | F185: at.1-123 | G185: 1 | H185: =G:G*D:D -> 36.99 | I185: 2015-06-10 | J185: 4.56
A186: id-185 | B186: ebay | C186: 11.25 | D186: 28.52 | E186: belgio | F186: selz.011 | G186: 1 | H186: 28.52 | I186: 2015-06-18 | J186: -0.29 | K186: lo vuole in tipo 20 giorni | L186: 11.31 | M186: si | N186: =D186 -> 28.52 | O186: si | P186: si
A187: id-186 | B187: ebay | C187: 12.31 | D187: 26.4 | E187: 33019 | F187: at.2-159 | G187: 1 | H187: 26.4 | I187: 2015-06-19 | J187: 5.44
A188: id-187 | B188: ebay | C188: 0.83 | D188: 4.99 | E188: 50038 | F188: selz.020 | G188: 1 | H188: 4.99 | I188: 2015-06-20 | J188: 2.24
A189: id-188 | B189: ebay | C189: 11.77 | D189: 26.88 | E189: spagna | F189: at.1-061 | G189: 1 | H189: 26.88 | I189: 2015-06-21 | J189: 6.31
A190: id-189 | B190: ebay | C190: 6.52 | D190: 12.49 | E190: 61029 | F190: at.2-015 | G190: 1 | H190: 12.49 | I190: 2015-06-23 | J190: 1.7
A191: id-190 | B191: ebay | C191: 25.83 | D191: 39.41 | E191: 36020 | F191: at.1-077 | G191: 1 | H191: =SUM(D191:D192) -> 78.23 | I191: 2015-06-24 | J191: =ROUND(Vendita/(1+IVA),2)-PP_f/2-Costo-ROUND(ToT*eBay,2)-ROUND(ToT*PP,2) -> -4.185
A192: id-191 | B192: ebay | C192: 10.79 | D192: 38.82 | F192: at.1-072 | G192: 1 | I192: 2015-06-24 | J192: =ROUND(Vendita/(1+IVA),2)-PP_f/2-Costo-ROUND(ToT*eBay,2)-ROUND(ToT*PP,2) -> 20.855
A193: id-192 | B193: ebay | C193: 6.29 | D193: 12.49 | E193: 09044 | F193: at.2-015 | G193: 1 | H193: =G:G*D:D -> 12.49 | I193: 2015-06-24 | J193: 1.93
A194: id-193 | B194: ebay | C194: 1.05 | D194: 7.49 | E194: 06061 | F194: selz.023 | G194: 1 | H194: 7.49 | I194: 2015-07-04 | J194: =IF(ID="","",IF(E_Clnt>ToT,"che cavolo fai?! Non puoi rimborsare più di qunato abbia pagato!",ROUND((ToT-E_Clnt)/(1+IVA),2)-Costo-PP_f-IF(D_PayPal="si",ROUND(PP*(ToT-E_Clnt),2),ROUND(PP*ToT,2))-IF(origine="ebay",IF(D_eBay="si",0,ROUND(ToT*eBay,2)),0)+IF(DrpSp="si",E_DrpSp,0))) -> 3.74 | K194: Non ha fornito il numero civico
A195: id-194 | B195: ebay | C195: 11.72 | D195: 26.88 | E195: 36027 | F195: at.2-145 | G195: 1 | H195: 26.88 | I195: 2015-07-16 | J195: 6.36
A196: id-195 | B196: ebay | C196: 6.49 | D196: 12.99 | E196: 65010 | F196: at.2-015 | G196: 1 | H196: 12.99 | I196: 2015-07-20 | J196: 2.07
A197: id-196 | B197: ebay | C197: 23.06 | D197: 38.28 | E197: 80139 | F197: at.1-122 | G197: 1 | H197: 38.28 | I197: 2015-07-23 | J197: 2.84
A198: id-197 | B198: ebay | C198: 15.21 | D198: 31.91 | E198: 20090 | F198: at.n-020 | G198: 1 | H198: 31.91 | I198: 2015-07-28 | J198: 2.4 | K198: mi ha inviato le foto, ho aperto la disputa 16.09.15 un coso non li è arrivato! 15.09.15 | N198: 5 | O198: no | P198: si
A199: id-198 | B199: ebay | C199: 19.51 | D199: 41.5 | E199: 20011 | F199: at.1-021 | G199: 1 | H199: 41.5 | I199: 2015-07-30 | J199: 8.6
A200: id-199 | B200: ebay | C200: 17.39 | D200: 35.95 | E200: 12051 | F200: at.1-003 | G200: 1 | H200: 35.95 | I200: 2015-08-10 | J200: 6.91
... 15 more rows

Sheet Menu
A1: Menu | B1: origine | D1: Costi
A2: at | B2: ebay | D2: IVA | E2: 0.22
A3: si | B3: sito | D3: eBay | E3: 0.1
A4: no | B4: diretto | D4: PP % | E4: 0.034
A5: altro | B5: altro | D5: PP f | E5: 0.35
A6: np

Sheet Statistiche
B1: Totale | E1: Totale | F1: Medio | H1: Anno | I1: Mese | J1: Venduto | K1: Ordinato | L1: Rimborsato | M1: Guadagnato
A2: Venduto | D2: Guadagno
A3: Ordinato dal fornitore | D3: Guadagno (escludendo rimborsi)
A4: Numero Transazioni
A5: Vendite eBay | E5: Totale | F5: Percentuale
A6: Vendite Sito | D6: Rimborsato ai Clienti
A7: Vendite Altro | D7: Romborsato dal Fornitore
